bitfinex/quotes_ETHUSD_20250129
["timestamp","ask_amount","ask_price","bid_price","bid_amount"]
[1738187215398,3.18211,3142.6,3142.1,0.005]
[1738187215594,0.318211,3142.5,3142.1,0.005]
[1738187215915,0.318211,3142.5,3142.1,3.18756]
[1738187216109,0.318211,3142.5,3142.2,3.18239]
[1738187216339,3.0,3142.7,3142.2,3.18239]
[1738187216644,6.18198,3142.7,3142.1,3.18757]
[1738187216798,3.0,3142.7,3142.2,3.18241]
[1738187217653,0.015,3142.6,3142.1,0.005]
[1738187217957,6.63578,3142.2,3142.1,0.005]
[1738187218128,8.167595,3142.2,3142.1,1e-05]
[1738187218449,8.167595,3142.2,3141.8,0.1622983]
[1738187218450,3.62108,3141.9,3141.8,0.1622983]
[1738187218604,7.17108,3141.9,3141.8,0.1622983]
[1738187218800,7.17858,3141.9,3141.8,0.1622983]
[1738187219039,8.215455,3141.9,3141.8,0.1622983]
[1738187219245,8.222955,3141.9,3141.8,0.1622983]
[1738187220496,7.672955,3141.9,3141.8,0.1622983]
[1738187220695,0.981815,3142.2,3141.8,0.1622983]
[1738187220939,3.18238,3142.3,3141.8,0.1622983]
[1738187221154,0.015,3142.2,3141.8,0.1622983]
[1738187221341,3.63608,3141.9,3141.8,0.1622983]
[1738187221551,7.18608,3141.9,3141.8,0.1622983]
[1738187221737,8.222946,3141.9,3141.8,0.1622983]
[1738187222868,8.87136015,3141.9,3141.8,0.1622983]
[1738187224619,8.87136015,3141.9,3141.8,8.3e-06]
[1738187227875,7.672946,3141.9,3141.8,8.3e-06]
[1738187228187,4.672946,3141.9,3141.8,8.3e-06]
[1738187228408,0.0075,3141.9,3141.8,8.3e-06]
[1738187228686,3.0,3142.0,3141.8,8.3e-06]
[1738187228886,3.015,3142.2,3141.8,8.3e-06]
[1738187229190,3.19749,3142.2,3141.8,8.3e-06]
[1738187229356,0.0075,3142.0,3141.8,8.3e-06]
[1738187229892,6.19778,3141.9,3141.8,8.3e-06]
[1738187230038,7.18608,3141.9,3141.8,8.3e-06]
[1738187231294,3.0,3141.9,3141.8,8.3e-06]
[1738187231442,6.18278,3141.9,3141.8,8.3e-06]
[1738187231787,3.0,3141.9,3141.8,8.3e-06]
[1738187232081,6.18278,3141.9,3141.8,8.3e-06]
[1738187233397,7.684325,3141.9,3141.8,8.3e-06]
[1738187233548,7.572625,3141.9,3141.8,8.3e-06]
[1738187233751,7.134325,3141.9,3141.8,8.3e-06]
[1738187234876,7.126825,3141.9,3141.8,8.3e-06]
[1738187235188,6.18278,3141.9,3141.8,8.3e-06]
[1738187235702,3.0,3141.9,3141.8,8.3e-06]
[1738187236407,4.0033,3141.8,3138.8,0.2]
[1738187236565,0.0075,3141.0,3138.9,0.8271]
[1738187236764,0.0075,3141.0,3139.7,0.801]
[1738187236765,0.0075,3140.7,3139.7,0.801]
[1738187236964,3.0,3139.9,3139.7,0.801]
[1738187237167,3.18451,3140.2,3139.7,0.801]
[1738187237369,3.18473,3140.0,3139.7,0.801]
[1738187237777,3.18452,3140.2,3139.7,0.801]
[1738187237979,3.0,3140.1,3139.7,0.801]
[1738187238218,3.18454,3140.2,3139.7,0.801]
[1738187238722,3.18427,3140.5,3139.7,0.801]
[1738187238886,3.1845,3140.3,3139.7,0.801]
[1738187239086,6.18403,3140.7,3139.8,3.18483]
[1738187239291,3.18422,3140.5,3139.9,0.8031]
[1738187239503,3.18422,3140.5,3139.9,3.98788]
[1738187239707,3.18401,3140.7,3139.9,0.8031]
[1738187240015,3.18429,3140.5,3139.9,1.2417551]
[1738187240508,3.18429,3140.5,3139.9,4.4265651]
[1738187240697,3.1839,3140.8,3140.0,3.18468]
[1738187240875,3.18402,3140.7,3140.0,3.18468]
[1738187241075,3.18402,3140.7,3140.1,0.44264351]
[1738187241675,3.19869,3141.0,3140.1,0.44264351]
[1738187241877,3.18398,3140.8,3139.9,0.8031]
[1738187242184,3.18409,3140.7,3140.0,3.18461]
[1738187242390,3.18439,3140.4,3139.9,0.8031]
[1738187242591,3.18446,3140.3,3139.9,0.8031]
[1738187242976,3.18436,3140.4,3139.9,0.8031]
[1738187243176,3.18441,3140.3,3139.9,0.8031]
[1738187243518,3.18436,3140.4,3139.9,0.8031]
[1738187244872,1.060092,3141.4,3140.0,0.3988]
[1738187245094,3.18339,3141.3,3140.6,0.764]
[1738187245516,3.18361,3141.1,3140.6,0.764]
[1738187245797,3.1836,3141.1,3140.6,0.764]
[1738187246026,6.36688,3141.3,3140.6,0.764]
[1738187246234,3.18356,3141.2,3140.6,0.764]
[1738187246437,3.0,3141.4,3140.6,0.764]
[1738187246641,3.18348,3141.3,3140.6,1.158814]
[1738187246852,3.18348,3141.3,3140.7,3.18396]
[1738187247525,3.18309,3141.6,3140.9,0.7778]
[1738187247735,3.18309,3141.6,3140.9,3.96157]
[1738187248206,3.18327,3141.5,3140.9,3.96157]
[1738187248405,3.18333,3141.4,3140.9,0.7778]
[1738187248636,3.18327,3141.5,3140.9,3.96153]
[1738187248812,6.36609,3141.7,3141.0,3.18368]
[1738187249148,0.3,3141.8,3141.2,3.1834]
[1738187249457,3.19022,3142.0,3141.2,3.1834]
[1738187249631,3.19022,3142.0,3141.4,0.8141]
[1738187249632,6.18279,3141.9,3141.4,0.8141]
[1738187250225,3.0,3141.7,3141.4,0.8141]
[1738187250755,3.19019,3142.0,3141.4,3.99735]
[1738187251047,3.18306,3141.7,3141.4,0.8141]
[1738187251211,6.18287,3141.9,3141.4,0.8141]
[1738187251414,3.0,3142.0,3141.4,0.8141]
[1738187251613,0.0075,3142.2,3141.7,3.18297]
[1738187251946,3.18232,3142.4,3141.9,3.18278]
[1738187252450,3.18232,3142.4,3141.8,0.8141]
[1738187253030,3.18232,3142.4,3141.8,3.99698]
[1738187253366,3.18265,3142.1,3141.8,0.8141]
[1738187254934,3.18265,3142.1,3141.8,0.8541]
[1738187255664,3.19023,3142.0,3141.8,0.8541]
[1738187255867,3.19023,3142.0,3141.8,0.04]
[1738187255868,6.19028,3141.9,3141.8,0.04]
[1738187256168,6.19778,3141.9,3141.8,0.04]
[1738187257566,3.015,3141.9,3141.8,0.04]
[1738187258268,3.0,3141.9,3141.8,0.04]
[1738187258564,3.0,3141.9,3141.8,4.03698]
[1738187258764,0.0075,3142.2,3141.8,0.8541]
[1738187258969,3.19004,3142.2,3141.8,0.8541]
[1738187259165,3.18259,3142.1,3141.8,0.8541]
[1738187260234,3.18269,3142.0,3141.8,0.8541]
[1738187260449,3.819838,3142.1,3141.8,0.8541]
[1738187261165,0.637248,3142.1,3141.8,0.04]
[1738187261467,6.19028,3141.9,3141.8,0.04]
[1738187261679,3.1825,3142.2,3141.8,0.04]
[1738187261819,6.36506,3142.2,3141.8,0.04]
[1738187262025,3.0,3142.3,3141.8,0.04]
[1738187262226,6.18241,3142.3,3141.9,0.8179]
[1738187262455,3.18255,3142.2,3141.9,0.8179]
[1738187262640,3.0,3142.3,3141.9,0.8179]
[1738187262854,3.18257,3142.2,3141.9,0.8179]
[1738187263060,3.18268,3142.0,3141.9,0.8179]
[1738187263371,3.18278,3141.9,3141.8,0.04]
[1738187267300,3.18268,3142.0,3141.8,0.04]
[1738187268298,3.18248,3142.2,3141.8,0.04]
[1738187268513,3.18214,3142.6,3142.0,3.18267]
[1738187268799,3.18238,3142.3,3141.9,0.784]
[1738187269691,3.18222,3142.5,3141.9,3.96671]
[1738187269893,3.18222,3142.5,3142.0,3.18267]
[1738187270467,3.0,3142.6,3142.0,3.18267]
[1738187270701,3.18202,3142.7,3142.1,3.18257]
[1738187270865,3.18209,3142.6,3142.0,3.901623]
[1738187271073,3.1823,3142.4,3141.9,0.784]
[1738187271299,3.1823,3142.4,3141.9,3.96677]
[1738187271706,3.1821,3142.6,3141.9,0.784]
[1738187271906,3.1821,3142.6,3142.0,3.18265]
[1738187272613,0.015,3143.1,3141.9,0.824]
[1738187272809,3.18268,3142.0,3141.9,0.04]
[1738187273010,0.4383,3142.5,3141.9,0.04]
[1738187273011,3.18258,3142.2,3141.9,0.04]
[1738187273170,3.500878,3142.1,3141.9,0.04]
[1738187274915,3.0,3142.5,3142.0,4.00045]
[1738187275229,3.18212,3142.6,3142.0,4.00045]
[1738187275602,3.18192,3142.8,3142.0,4.00045]
[1738187275603,3.18192,3142.8,3142.2,3.18244]
[1738187275910,3.18169,3143.0,3142.2,0.7892]
[1738187276117,3.18179,3142.9,3142.3,3.18228]
[1738187276315,3.18179,3142.9,3142.3,6.36459]
[1738187276514,3.499859,3143.0,3142.3,3.18228]
[1738187276713,3.18187,3142.8,3142.3,3.18228]
[1738187276921,3.015,3142.9,3142.3,3.18228]
[1738187277099,6.19683,3142.9,3142.3,3.18228]
[1738187277412,3.18189,3142.8,3142.3,3.18228]
[1738187278302,3.18189,3142.8,3142.2,7.15412]
[1738187278509,3.18189,3142.8,3142.3,3.18237]
[1738187279555,3.0075,3142.9,3142.3,6.36466]
[1738187279856,3.18198,3142.7,3142.2,0.7892]
[1738187280028,3.18223,3142.5,3142.2,0.7892]
[1738187281112,3.18201,3142.7,3142.2,0.7892]
[1738187281308,3.18201,3142.7,3142.2,3.97167]
[1738187281746,3.18145,3143.3,3142.2,0.7892]
[1738187281927,3.18145,3143.3,3142.3,0.7578]
[1738187282121,0.0075,3143.2,3142.8,0.7578]
[1738187282348,3.18145,3143.3,3142.8,3.93965]
[1738187282527,0.0075,3143.6,3142.8,3.93965]
[1738187282528,3.18159,3143.1,3142.8,0.7578]
[1738187282738,3.18159,3143.1,3142.0,3.18267]
[1738187282739,3.18188,3142.8,3142.3,0.7578]
[1738187282922,3.18204,3142.7,3142.3,0.7578]
[1738187283510,3.18155,3143.2,3142.3,0.7578]
[1738187283715,3.18076,3143.9,3143.0,3.1816]
[1738187283963,3.18117,3143.5,3143.1,0.8139]
[1738187284129,3.18137,3143.3,3143.1,0.8139]
[1738187284337,3.18147,3143.2,3143.1,0.8139]
[1738187284674,3.18127,3143.4,3143.1,0.8139]
[1738187284849,3.18138,3143.3,3143.1,0.8139]
[1738187285329,3.18147,3143.2,3142.7,0.751]
[1738187285530,3.18138,3143.3,3142.7,0.751]
[1738187285735,3.18138,3143.3,3142.7,3.93297]
[1738187285951,3.18138,3143.3,3142.8,3.18186]
[1738187286158,0.0075,3143.4,3142.8,3.18186]
[1738187286318,0.0075,3143.4,3142.1,3.63623251]
[1738187286319,3.0,3144.1,3142.9,0.7665]
[1738187286518,0.015,3144.0,3143.6,0.761]
[1738187286947,3.18076,3143.9,3143.0,0.761]
[1738187287150,3.0,3143.8,3143.0,3.94261]
[1738187287347,0.0075,3143.7,3143.2,3.18146]
[1738187287620,0.0075,3143.7,3143.0,3.94261]
[1738187287621,0.626336,3143.7,3143.1,3.18152]
[1738187287863,3.18067,3144.0,3143.2,3.18145]
[1738187288031,3.18034,3144.4,3143.1,0.7957]
[1738187288230,0.4383,3144.6,3143.9,0.7957]
[1738187288460,3.18021,3144.5,3143.9,7.15711]
[1738187288667,0.4383,3144.6,3143.9,0.7957]
[1738187288850,3.18058,3144.1,3143.6,0.8211]
[1738187289046,0.318058,3144.0,3143.6,0.8211]
[1738187289259,3.18058,3144.1,3143.6,0.8211]
[1738187289572,3.18024,3144.5,3143.9,3.18074]
[1738187289774,0.4383,3145.0,3143.7,3.18088]
[1738187289775,3.17995,3144.7,3143.7,3.18088]
[1738187289923,3.18054,3144.2,3143.6,0.8211]
[1738187290118,3.18054,3144.2,3143.6,4.00216]
[1738187290869,3.18054,3144.2,3143.7,3.18096]
[1738187290870,3.18046,3144.2,3143.7,3.18096]
[1738187291457,3.1954,3144.3,3143.7,3.18096]
[1738187291823,3.18048,3144.2,3143.7,3.18096]
[1738187292569,3.61797,3145.0,3143.8,0.7856]
[1738187292770,3.17882,3145.9,3144.4,3.96581]
[1738187292771,3.17977,3144.9,3144.4,3.96581]
[1738187293064,3.17995,3144.7,3144.4,0.7856]
[1738187293447,3.17977,3144.9,3144.4,0.7856]
[1738187293630,0.0075,3144.8,3144.4,0.7856]
[1738187293831,3.17959,3145.1,3144.5,3.18007]
[1738187294068,3.17939,3145.3,3144.4,0.7856]
[1738187294069,3.17939,3145.3,3144.8,3.17983]
[1738187294221,3.0,3145.5,3144.8,3.17983]
[1738187294420,3.17946,3145.2,3144.6,3.18001]
[1738187294919,0.0075,3145.6,3144.5,0.7743]
[1738187295124,3.17928,3145.4,3144.6,3.17995]
[1738187295326,0.78300577,3146.6,3144.9,0.7743]
[1738187295524,3.17865,3146.0,3145.3,3.17927]
[1738187295755,3.17875,3145.9,3145.1,3.95377]
[1738187295975,3.1788,3145.9,3145.2,3.17943]
[1738187296181,3.1788,3145.9,3145.1,3.95377]
[1738187296325,3.015,3146.0,3145.4,3.17922]
[1738187296669,3.0,3146.1,3145.6,3.17902]
[1738187297167,6.17854,3146.1,3145.4,3.17922]
[1738187297370,3.17884,3145.8,3145.3,0.7622]
[1738187297540,3.17877,3145.9,3145.3,3.94153]
[1738187297728,3.17885,3145.8,3145.3,3.94153]
[1738187297928,3.17865,3146.0,3145.4,3.17917]
[1738187298128,0.0075,3146.0,3145.5,3.17911]
[1738187298339,3.0,3146.1,3145.5,3.17911]
[1738187298739,3.18576,3146.4,3145.9,3.17873]
[1738187298937,3.015,3146.5,3145.9,3.17873]
[1738187299268,0.0075,3146.5,3145.9,3.890714]
[1738187299465,3.0,3146.5,3146.0,3.17863]
[1738187299638,3.0,3146.5,3146.1,3.17853]
[1738187300178,3.0,3146.7,3146.1,3.17853]
[1738187300359,3.0,3146.7,3146.2,3.496273]
[1738187300558,3.0,3146.7,3146.2,0.317853]
[1738187300731,3.17787,3146.8,3146.0,3.17855]
[1738187300926,3.17787,3146.8,3146.3,0.7566]
[1738187301370,3.17787,3146.8,3146.3,3.93493]
[1738187301759,3.17795,3146.7,3146.3,0.7566]
[1738187302272,3.17727,3147.4,3146.8,3.17781]
[1738187302568,3.1777,3147.0,3146.8,0.317781]
[1738187302767,0.015,3147.3,3146.3,0.7566]
[1738187302979,3.17779,3146.9,3146.3,0.7566]
[1738187303145,3.0,3147.2,3146.7,3.17786]
[1738187303340,3.17739,3147.3,3146.9,0.8232]
[1738187303569,3.17716,3147.5,3146.9,4.00084]
[1738187303869,3.0,3147.4,3146.9,4.00084]
[1738187304026,3.17735,3147.3,3146.9,0.8232]
[1738187304233,3.17716,3147.5,3144.3,0.8232]
[1738187304234,0.565,3146.4,3144.3,0.8232]
[1738187304572,3.18015,3144.5,3144.3,0.8232]
[1738187304740,0.4383,3145.7,3144.4,0.7844]
[1738187304941,3.17972,3145.0,3144.4,0.7844]
[1738187305167,3.17963,3145.1,3144.5,0.396473]
[1738187305345,3.17969,3145.0,3144.4,0.7844]
[1738187305549,3.17963,3145.1,3144.4,3.96456]
[1738187305752,3.17965,3145.0,3144.4,0.7844]
[1738187306074,3.17963,3145.1,3144.4,3.96465]
[1738187306239,3.17963,3145.1,3144.5,3.18013]
[1738187306438,3.17963,3145.1,3144.5,3.894618]
[1738187306743,0.015,3145.1,3144.4,0.7844]
[1738187306948,3.17998,3144.7,3144.4,0.7844]
[1738187307156,3.17986,3144.8,3144.4,0.7844]
[1738187307934,3.17981,3144.9,3144.4,0.7844]
[1738187308134,3.17986,3144.8,3144.4,0.7844]
[1738187308547,3.1801,3144.6,3144.4,0.7844]
[1738187309173,3.1944,3145.3,3144.4,0.7844]
[1738187309174,0.0075,3144.9,3144.4,3.96459]
[1738187309472,3.0,3145.1,3144.5,3.576579]
[1738187309671,3.0,3145.1,3144.6,3.18004]
[1738187310475,3.17968,3145.0,3144.4,3.96459]
[1738187310976,3.0,3145.1,3144.5,3.18007]
[1738187311480,3.0,3145.1,3144.6,3.18]
[1738187311652,3.17954,3145.1,3144.4,0.7844]
[1738187311854,3.17976,3144.9,3144.4,0.7844]
[1738187312081,3.497494,3145.1,3144.4,0.7844]
[1738187312285,3.17938,3145.3,3144.6,3.17999]
[1738187312442,3.17938,3145.3,3144.7,3.17986]
[1738187312640,0.0075,3145.2,3144.7,3.17986]
[1738187313178,0.0075,3145.2,3144.4,3.96462]
[1738187313332,3.18697,3145.2,3144.5,3.18008]
[1738187313836,0.0075,3145.2,3144.7,3.17993]
[1738187314033,0.0075,3145.2,3144.4,3.96461]
[1738187314237,3.18699,3145.2,3144.5,3.1801]
[1738187315054,0.0075,3145.2,3144.6,3.18004]
[1738187315278,3.18695,3145.2,3144.6,3.18004]
[1738187316492,3.17932,3145.4,3144.6,3.18004]
[1738187316665,3.17935,3145.3,3144.6,3.17998]
[1738187316983,3.17935,3145.3,3144.7,3.17993]
[1738187317273,3.17935,3145.3,3144.8,3.95084]
[1738187317476,3.0,3145.4,3144.8,3.95084]
[1738187317784,6.17933,3145.4,3144.8,3.95084]
[1738187319581,3.015,3145.5,3144.9,3.17973]
[1738187319783,6.19418,3145.5,3144.9,3.17973]
[1738187320786,3.17952,3145.2,3144.8,0.771]
[1738187321283,0.015,3145.3,3144.8,0.771]
[1738187321486,3.1795,3145.2,3144.8,0.771]
[1738187321884,0.0075,3145.1,3144.8,0.771]
[1738187322074,3.17965,3145.0,3144.8,0.771]
[1738187322984,0.0075,3145.1,3144.8,0.771]
[1738187323185,3.17858,3146.1,3144.9,0.7641]
[1738187323389,0.0075,3145.6,3144.9,0.7641]
[1738187323687,0.0075,3145.6,3144.9,3.94375]
[1738187323987,0.015,3145.8,3144.9,0.7641]
[1738187324152,3.17847,3146.2,3145.5,3.17907]
[1738187324348,0.317847,3146.1,3145.5,0.8309]
[1738187324671,0.015,3146.2,3145.7,3.17886]
[1738187324987,0.015,3146.2,3145.5,4.01002]
[1738187325185,0.015,3146.0,3145.6,3.17898]
[1738187325574,0.015,3146.0,3145.5,0.8309]
[1738187325781,0.0075,3145.6,3145.1,4.01041]
[1738187326366,3.19386,3145.8,3145.2,3.17942]
[1738187326664,0.015,3145.8,3145.1,0.8309]
[1738187326865,0.015,3145.6,3145.0,3.17956]
[1738187327191,0.0075,3145.6,3145.3,3.17934]
[1738187327354,3.1789,3145.8,3145.3,3.17934]
[1738187327559,0.0075,3145.7,3145.3,3.17934]
[1738187327976,0.0075,3145.7,3145.4,3.17923]
[1738187328181,0.0075,3145.8,3145.4,3.17923]
[1738187328383,0.0075,3145.8,3145.4,3.17916]
[1738187328598,0.0075,3145.8,3145.4,6.35834]
[1738187328797,0.0075,3145.8,3145.4,3.17916]
[1738187329396,3.0,3146.0,3145.4,3.17916]
[1738187329603,0.015,3145.9,3145.4,3.17916]
[1738187330114,0.015,3145.9,3145.5,3.17912]
[1738187330601,0.015,3145.9,3145.4,3.17916]
[1738187330602,0.0075,3145.7,3145.4,3.17916]
[1738187330810,0.0075,3145.8,3145.4,6.35834]
[1738187331025,0.0075,3145.8,3145.4,3.17916]
[1738187331513,4.2171606,3145.8,3145.2,3.1794]
[1738187331725,4.2171606,3145.8,3145.0,3.17961]
[1738187331726,3.18663,3145.6,3145.0,3.17961]
[1738187332021,3.18663,3145.6,3145.0,3.17955]
[1738187332769,3.18663,3145.6,3145.1,3.17952]
[1738187332993,0.0075,3145.6,3145.1,3.17952]
[1738187335312,0.0075,3145.6,3145.0,3.17955]
[1738187335524,0.370718,3145.6,3145.2,3.17943]
[1738187336425,0.0075,3145.6,3145.2,3.17943]
[1738187337295,3.0,3145.8,3145.2,3.17943]
[1738187337491,3.0,3146.0,3145.4,3.17916]
[1738187337698,0.015,3145.9,3145.4,3.17916]
[1738187337997,0.996053,3145.9,3145.4,3.17916]
[1738187338403,0.0075,3145.7,3145.4,3.17916]
[1738187338985,0.2,3147.4,3145.6,3.17897]
[1738187338986,3.17835,3146.3,3145.6,3.17897]
[1738187339211,3.0,3146.2,3145.7,3.17888]
[1738187339399,0.015,3146.1,3145.7,3.17888]
[1738187339596,0.015,3146.1,3145.6,3.97987]
[1738187339796,3.0,3146.0,3145.6,3.97987]
[1738187341626,0.661665,3146.2,3145.6,3.97987]
[1738187341812,3.61655,3146.4,3145.8,3.17878]
[1738187342159,0.015,3146.3,3145.8,3.17878]
[1738187342496,3.015,3146.3,3145.8,3.17878]
[1738187342950,6.1934,3146.3,3145.8,3.17878]
[1738187343617,0.0075,3146.1,3145.2,0.8319]
[1738187343835,3.18646,3145.7,3145.2,0.8319]
[1738187344050,0.0075,3145.7,3145.2,4.01125]
[1738187344309,3.17849,3146.2,3145.6,3.17897]
[1738187344524,3.0,3146.3,3145.6,3.17897]
[1738187344722,3.0,3146.3,3145.8,4.01067]
[1738187345018,0.4383,3147.1,3146.8,3.17777]
[1738187345322,3.17721,3147.5,3147.0,3.17755]
[1738187345323,0.4383,3147.5,3147.0,3.17755]
[1738187345661,0.4383,3147.5,3147.1,3.17743]
[1738187345955,0.0075,3147.4,3146.9,3.17772]
[1738187346110,0.0075,3147.4,3147.0,3.17762]
[1738187347147,0.0075,3147.4,3146.8,3.17779]
[1738187347356,3.1775,3147.2,3146.6,3.17799]
[1738187347907,0.34458,3147.3,3146.7,3.17793]
[1738187348144,0.34458,3147.3,3146.5,0.8319]
[1738187348346,0.4383,3147.5,3147.0,3.17753]
[1738187348507,3.4383,3147.5,3147.0,3.17753]
[1738187348713,0.0075,3147.4,3147.0,3.17753]
[1738187349248,0.0075,3147.4,3146.8,3.17782]
[1738187349551,3.17774,3146.9,3146.3,3.17828]
[1738187349844,0.4383,3146.9,3146.3,3.17828]
[1738187350177,0.015,3147.0,3146.5,3.17811]
[1738187350511,3.19266,3147.0,3146.5,3.17811]
[1738187350914,0.63883422,3147.5,3146.2,0.8207]
[1738187350915,3.17715,3147.5,3146.2,0.8207]
[1738187351212,3.17715,3147.5,3146.8,3.17773]
[1738187351407,0.015,3147.4,3146.9,3.17768]
[1738187351610,0.015,3147.4,3146.8,3.17773]
[1738187351861,3.17733,3147.3,3146.8,3.17773]
[1738187352011,3.17733,3147.3,3146.6,3.17799]
[1738187352012,0.0075,3147.2,3146.6,3.17799]
[1738187352211,0.327483,3147.2,3146.7,3.17792]
[1738187352412,0.0075,3147.2,3146.7,3.17792]
[1738187354554,0.0075,3147.2,3146.8,3.17783]
[1738187355048,6.61536,3147.6,3147.0,3.1776]
[1738187355421,0.015,3147.5,3147.0,3.1776]
[1738187355641,0.0075,3147.5,3147.1,3.17751]
[1738187355953,0.0075,3147.5,3147.2,3.17739]
[1738187356154,3.0,3147.8,3147.2,3.17739]
[1738187356359,0.4383,3148.3,3147.2,0.398679]
[1738187356559,0.4383,3148.3,3147.8,3.17674]
[1738187356856,0.015,3148.2,3147.9,3.1767]
[1738187357364,0.005,3148.4,3148.0,3.17661]
[1738187357863,0.0125,3148.4,3147.8,3.17678]
[1738187358043,0.0125,3148.4,3147.9,3.17667]
[1738187358221,0.0125,3148.4,3147.8,3.17678]
[1738187358416,0.0125,3148.4,3147.8,6.35353]
[1738187358622,0.0125,3148.4,3147.9,3.17665]
[1738187358934,0.0125,3148.4,3147.9,3.17672]
[1738187359257,0.0125,3148.4,3148.0,3.1766]
[1738187359759,0.0125,3148.4,3147.8,3.17675]
[1738187360085,3.17637,3148.3,3147.7,4.00466]
[1738187360519,0.0125,3148.4,3147.8,3.17672]
[1738187360719,0.0125,3148.4,3147.9,3.17672]
[1738187360916,3.18872,3148.4,3147.8,3.17672]
[1738187361361,3.18872,3148.4,3147.9,3.17671]
[1738187361856,3.18872,3148.4,3147.8,3.17672]
[1738187362060,3.61479,3148.2,3147.6,3.17699]
[1738187362364,3.17672,3147.9,3147.3,3.1773]
[1738187362517,3.19154,3148.1,3147.4,3.17714]
[1738187362859,0.0075,3148.1,3147.8,3.17678]
[1738187363158,0.005,3148.4,3147.8,3.17678]
[1738187363159,0.005,3148.4,3148.0,3.17653]
[1738187363763,0.0125,3148.4,3148.0,3.17653]
[1738187363930,0.0125,3148.4,3147.8,3.494418]
[1738187364124,3.18877,3148.4,3147.7,3.96794]
[1738187364461,3.18877,3148.4,3147.9,3.17671]
[1738187364657,0.005,3148.4,3148.3,3.17631]
[1738187372363,0.005,3148.4,3148.3,6.96201]
[1738187372973,0.005,3148.4,3148.3,7.36201]
[1738187373174,0.005,3148.4,3148.3,9.04116342]
[1738187373944,0.005,3148.4,3148.3,9.66656251]
[1738187374790,0.005,3148.4,3148.3,9.04116342]
[1738187377803,0.005,3148.4,3148.3,4.85546342]
[1738187378009,0.005,3148.4,3148.1,3.17642]
[1738187381009,0.005,3148.4,3148.3,3.96901]
[1738187382664,0.005,3148.4,3148.3,6.96901]
[1738187382865,0.005,3148.4,3148.3,7.51901]
[1738187383519,1e-05,3148.4,3148.3,7.51901]
[1738187383664,1e-05,3148.4,3148.3,9.84661634]
[1738187384644,1e-05,3148.4,3148.3,9.86161634]
[1738187385209,0.4383,3150.1,3149.8,3.17474]
[1738187386387,0.4383,3150.1,3149.6,3.17492]
[1738187386592,0.4383,3150.1,3149.6,3.17491]
[1738187386787,0.4383,3150.1,3149.6,3.809917]
[1738187387035,0.4383,3150.1,3149.8,3.17479]
[1738187387216,3.4383,3150.4,3149.9,3.17467]
[1738187387539,3.61217,3150.8,3150.2,3.17437]
[1738187387690,0.4383,3150.8,3150.2,3.17437]
[1738187387891,3.17391,3150.7,3150.0,3.17455]
[1738187388197,3.17391,3150.7,3150.1,3.1745]
[1738187388396,0.4383,3150.8,3150.3,3.17423]
[1738187388711,0.4383,3150.8,3150.5,3.17404]
[1738187389029,0.4383,3150.8,3150.4,3.17415]
[1738187389227,0.4383,3150.8,3150.3,3.17426]
[1738187389393,0.4383,3150.8,3150.0,3.887918]
[1738187389744,3.174,3150.6,3150.0,3.887918]
[1738187390042,3.174,3150.6,3150.1,0.3887918]
[1738187390190,3.61218,3150.8,3150.1,3.5632118]
[1738187390398,3.17392,3150.7,3150.1,3.17442]
[1738187391648,0.4383,3150.8,3149.9,3.17467]
[1738187391873,3.17408,3150.6,3149.9,3.17467]
[1738187392050,3.17408,3150.6,3150.0,3.17454]
[1738187392217,3.17408,3150.6,3149.9,3.17467]
[1738187392415,3.17408,3150.6,3149.9,6.745197]
[1738187392656,3.17408,3150.6,3149.9,3.570527]
[1738187392969,3.1742,3150.4,3149.9,1.02718246]
[1738187393864,3.1742,3150.4,3149.9,4.20187246]
[1738187395066,3.17402,3150.6,3150.0,3.17457]
[1738187395583,3.17416,3150.5,3149.9,1.02718246]
[1738187395778,0.015,3150.9,3149.9,0.63128546]
[1738187395921,0.4383,3150.0,3149.4,3.17511]
[1738187396417,3.61292,3150.0,3149.3,3.17522]
[1738187396619,3.17472,3149.9,3149.3,3.17522]
[1738187396968,0.4383,3150.7,3150.3,3.17429]
[1738187397116,3.17336,3151.3,3150.5,3.17401]
[1738187397317,0.4383,3151.5,3150.4,0.317429]
[1738187397521,0.4383,3151.5,3151.0,3.17359]
[1738187397754,0.4383,3151.5,3151.1,3.17349]
[1738187398151,0.4383,3151.5,3151.0,3.17359]
[1738187398665,0.4383,3151.5,3151.1,3.17349]
[1738187400460,0.4383,3151.8,3151.1,3.17349]
[1738187401127,3.6111,3151.8,3151.1,3.17349]
[1738187401863,0.4383,3151.8,3151.1,3.17349]
[1738187402223,3.6111,3151.8,3151.1,3.17349]
[1738187402474,0.4383,3151.8,3151.1,3.17349]
[1738187402958,3.1731,3151.5,3150.9,3.17365]
[1738187403205,3.17331,3151.3,3150.8,3.17375]
[1738187403512,3.0,3152.0,3151.1,3.17349]
[1738187403712,0.4383,3151.9,3151.1,4.00339]
[1738187405319,0.4383,3151.9,3151.1,7.00339]
[1738187406932,0.4383,3152.2,3151.1,7.55339]
[1738187407132,0.4383,3152.2,3151.1,9.01012663]
[1738187408020,8.3e-06,3151.2,3151.1,9.01762663]
[1738187408220,8.3e-06,3151.2,3151.1,9.02512663]
[1738187408414,8.3e-06,3151.2,3151.1,9.06512663]